fUST/lending_fUST_20250626
["ID","MTS","AMOUNT","RATE_DAILY","PERIOD"]
[367798671,1750932655924,-460.0,0.00018082,2]
[367798673,1750932655933,-1300.58,0.00018082,2]
[367798675,1750932655943,-515.47342929,0.00018082,2]
[367798677,1750932655952,-460.0,0.00018082,2]
[367798679,1750932655961,-460.0,0.00018082,2]
[367798681,1750932655970,-1064.55,0.00018082,2]
[367798683,1750932655979,-460.0,0.00018082,2]
[367798685,1750932655989,-1095.23,0.00018082,2]
[367798686,1750932655998,-1049.62,0.00018082,2]
[367798688,1750932656008,-460.0,0.00018082,2]
[367798690,1750932656017,-460.0,0.00018082,2]
[367798692,1750932656026,-460.0,0.00018082,2]
[367798694,1750932656038,-495.28377603,0.00018082,2]
[367798696,1750932656047,-370.80919601,0.00018082,2]
[367798698,1750932656056,-460.0,0.00018082,2]
[367798700,1750932656065,-460.0,0.00018082,2]
[367798702,1750932656074,-1288.06,0.00018082,2]
[367798704,1750932656083,-194.36166828,0.00018082,2]
[367798706,1750932656092,-1521.77,0.00018082,2]
[367798707,1750932656102,-224.63,0.00018082,2]
[367798709,1750932656111,-151.0,0.00018082,2]
[367798711,1750932656120,-460.0,0.00018082,2]
[367798722,1750932656216,-460.0,0.00018082,2]
[367798724,1750932656226,-313.62272974,0.00018082,2]
[367798726,1750932656235,-460.0,0.00018082,2]
[367798728,1750932656244,-460.0,0.00018082,2]
[367798729,1750932656253,-460.0,0.00018082,2]
[367798731,1750932656262,-1332.76,0.00018082,2]
[367798733,1750932656271,-626.87,0.00018082,2]
[367798735,1750932656280,-166.6693084,0.00018082,2]
[367798737,1750932656290,-160.0,0.0001811,2]
[367798739,1750932656299,-12560.17507789,0.0001811,2]
[367798741,1750932656308,-425.22527846,0.0001811,2]
[367798743,1750932656317,-846.92323443,0.0001811,2]
[367798744,1750932656326,-160.0,0.0001811,2]
[367798746,1750932656335,-160.0,0.0001811,2]
[367798747,1750932656344,-213.72380786,0.0001811,2]
[367798748,1750932656353,-230.24506774,0.0001811,2]
[367798749,1750932656363,-160.0,0.0001811,2]
[367798750,1750932656372,-160.0,0.0001811,2]
[367798751,1750932656381,-836.92866116,0.0001811,2]
[367798752,1750932656391,-160.0,0.00018111,2]
[367798753,1750932656400,-160.0,0.00018111,2]
[367798754,1750932656409,-524.25751634,0.00018111,2]
[367798755,1750932656419,-160.0,0.00018111,2]
[367798756,1750932656428,-151.307504,0.00018197,2]
[367798757,1750932656437,-151.0,0.00018197,2]
[367798758,1750932656446,-151.0,0.00018197,2]
[367798759,1750932656455,-151.0,0.00018197,2]
[367798760,1750932656465,-336.418142,0.00018197,2]
[367798761,1750932656475,-336.418142,0.00018197,2]
[367798762,1750932656484,-506.39651925,0.00018236,2]
[367798763,1750932656493,-1500.0,0.00018237,2]
[367798764,1750932656502,-504.53964016,0.00018237,2]
[367798765,1750932656511,-298.58513118,0.00018237,2]
[367798766,1750932656521,-1502.78026123,0.00018241,2]
[367798767,1750932656530,-500.0,0.00018265,2]
[367798768,1750932656539,-2564.65858329,0.00018279,2]
[367798770,1750932656548,-504.18410988,0.00018285,2]
[367798771,1750932656557,-1000.0,0.00018294,2]
[367798773,1750932656568,-1500.0,0.00018328,2]
[367798775,1750932656577,-1000.0,0.00018353,2]
[367798777,1750932656586,-151.0,0.00018356,2]
[367798779,1750932656596,-460.0,0.00018356,2]
[367798781,1750932656608,-594.2,0.00018356,2]
[367798783,1750932656618,-195.64194398,0.00018356,2]
[367798785,1750932656627,-460.0,0.00018356,2]
[367798787,1750932656636,-460.0,0.00018356,2]
[367798790,1750932656647,-460.0,0.00018356,2]
[367798791,1750932656656,-460.0,0.00018356,2]
[367798793,1750932656666,-460.0,0.00018356,2]
[367798795,1750932656676,-460.0,0.00018356,2]
[367798797,1750932656685,-393.91,0.00018356,2]
[367798799,1750932656695,-543.28,0.00018356,2]
[367798801,1750932656705,-460.0,0.00018356,2]
[367798803,1750932656714,-460.0,0.00018356,2]
[367798805,1750932656723,-460.0,0.00018356,2]
[367798807,1750932656733,-460.0,0.00018356,2]
[367798809,1750932656742,-460.0,0.00018356,2]
[367798811,1750932656751,-460.0,0.00018356,2]
[367798813,1750932656761,-609.7004614,0.00018356,2]
[367798815,1750932656770,-460.0,0.00018356,2]
[367798817,1750932656779,-389.00971537,0.00018356,2]
[367798819,1750932656789,-460.0,0.00018356,2]
[367798821,1750932656799,-460.0,0.00018356,2]
[367798823,1750932656808,-460.0,0.00018356,2]
[367798825,1750932656818,-460.0,0.00018356,2]
[367798827,1750932656828,-460.0,0.00018356,2]
[367798829,1750932656837,-294.19826866,0.00018356,2]
[367798831,1750932656846,-460.0,0.00018356,2]
[367798834,1750932656857,-460.0,0.00018356,2]
[367798835,1750932656866,-460.0,0.00018356,2]
[367798837,1750932656875,-460.0,0.00018356,2]
[367798839,1750932656883,-460.0,0.00018356,2]
[367798841,1750932656893,-350.9,0.00018356,2]
[367798843,1750932656902,-460.0,0.00018356,2]
[367798845,1750932656912,-460.0,0.00018356,2]
[367798847,1750932656921,-951.51,0.00018356,2]
[367798849,1750932656932,-460.0,0.00018356,2]
[367798851,1750932656942,-460.0,0.00018356,2]
[367798853,1750932656951,-537.51,0.00018356,2]
[367798855,1750932656960,-460.0,0.00018356,2]
[367798857,1750932656970,-999.24,0.00018356,2]
[367798859,1750932656979,-460.0,0.00018356,2]
[367798861,1750932656988,-533.08,0.00018356,2]
[367798863,1750932656998,-1671.12,0.00018356,2]
[367798865,1750932657007,-460.0,0.00018356,2]
[367798867,1750932657016,-474.23,0.00018356,2]
[367798869,1750932657025,-460.0,0.00018356,2]
[367798871,1750932657035,-1009.0,0.00018356,2]
[367798873,1750932657044,-497.28,0.00018356,2]
[367798875,1750932657054,-151.0,0.00018356,2]
[367798877,1750932657063,-460.0,0.00018356,2]
[367798879,1750932657073,-460.0,0.00018356,2]
[367798881,1750932657083,-460.0,0.00018356,2]
[367798883,1750932657092,-460.0,0.00018356,2]
[367798885,1750932657101,-582.79,0.00018356,2]
[367798887,1750932657110,-460.0,0.00018356,2]
[367798889,1750932657119,-460.0,0.00018356,2]
[367798891,1750932657129,-460.0,0.00018356,2]
[367798894,1750932657149,-460.0,0.00018356,2]
[367798896,1750932657159,-879.61,0.00018356,2]
[367798898,1750932657169,-460.0,0.00018356,2]
[367798900,1750932657180,-463.23,0.00018356,2]
[367798902,1750932657190,-460.49,0.00018356,2]
[367798904,1750932657200,-1903.18,0.00018356,2]
[367798906,1750932657210,-460.0,0.00018356,2]
[367798908,1750932657220,-460.0,0.00018356,2]
[367798910,1750932657230,-561.06,0.00018356,2]
[367798912,1750932657240,-2113.35,0.00018356,2]
[367798914,1750932657250,-1360.61,0.00018356,2]
[367798916,1750932657260,-460.0,0.00018356,2]
[367798918,1750932657270,-480.99,0.00018356,2]
[367798920,1750932657280,-460.0,0.00018356,2]
[367798923,1750932657290,-169.97346394,0.00018356,2]
[367798925,1750932657299,-1596.58,0.00018356,2]
[367798927,1750932657309,-2942.89,0.00018356,2]
[367798929,1750932657319,-700.89,0.00018356,2]
[367798931,1750932657329,-460.0,0.00018356,2]
[367798933,1750932657338,-460.0,0.00018356,2]
[367798935,1750932657348,-460.0,0.00018356,2]
[367798937,1750932657358,-741.82,0.00018356,2]
[367798939,1750932657367,-1597.51,0.00018356,2]
[367798941,1750932657377,-460.0,0.00018356,2]
[367798943,1750932657386,-1739.85,0.00018356,2]
[367798945,1750932657395,-3620.05,0.00018356,2]
[367798947,1750932657405,-3462.89,0.00018356,2]
[367798949,1750932657415,-460.0,0.00018356,2]
[367798951,1750932657424,-460.0,0.00018356,2]
[367798953,1750932657433,-460.0,0.00018356,2]
[367798954,1750932657443,-460.0,0.00018356,2]
[367798956,1750932657452,-460.0,0.00018356,2]
[367798958,1750932657462,-1420.6,0.00018356,2]
[367798960,1750932657472,-151.0,0.00018356,2]
[367798962,1750932657482,-481.33,0.00018356,2]
[367798964,1750932657491,-460.0,0.00018356,2]
[367798966,1750932657501,-1300.58,0.00018356,2]
[367798968,1750932657510,-460.0,0.00018356,2]
[367798970,1750932657520,-460.0,0.00018356,2]
[367798972,1750932657529,-1064.55,0.00018356,2]
[367798974,1750932657539,-460.0,0.00018356,2]
[367798976,1750932657548,-1095.23,0.00018356,2]
[367798978,1750932657558,-1049.62,0.00018356,2]
[367798980,1750932657568,-460.0,0.00018356,2]
[367798982,1750932657578,-460.0,0.00018356,2]
[367798984,1750932657587,-460.0,0.00018356,2]
[367798986,1750932657597,-460.0,0.00018356,2]
[367798988,1750932657610,-460.0,0.00018356,2]
[367798990,1750932657620,-1288.06,0.00018356,2]
[367798993,1750932657629,-1521.77,0.00018356,2]
[367798995,1750932657639,-460.0,0.00018356,2]
[367798997,1750932657648,-460.0,0.00018356,2]
[367798999,1750932657658,-553.05872448,0.00018356,2]
[367799001,1750932657668,-460.0,0.00018356,2]
[367799003,1750932657678,-460.0,0.00018356,2]
[367799005,1750932657687,-1332.76,0.00018356,2]
[367799007,1750932657697,-626.87,0.00018356,2]
[367799009,1750932657706,-2564.65858329,0.00018555,2]
[367799011,1750932657716,-1500.0,0.00018557,2]
[367799013,1750932657727,-1001.56070245,0.00018598,2]
[367799015,1750932657737,-501.13814084,0.00018598,2]
[367799017,1750932657746,-151.0,0.00018598,2]
[367799019,1750932657755,-196.43247,0.00018598,2]
[367799021,1750932657768,-151.0,0.00018598,2]
[367799023,1750932657777,-151.0,0.00018598,2]
[367799025,1750932657787,-460.0,0.0001863,2]
[367799027,1750932657796,-460.0,0.0001863,2]
[367799042,1750932657806,-460.0,0.0001863,2]
[367799044,1750932657944,-467.18,0.0001863,2]
[367799046,1750932657955,-151.0,0.0001863,2]
[367799048,1750932657964,-233.259426,0.0001863,2]
[367799050,1750932657973,-460.0,0.0001863,2]
[367799052,1750932657983,-460.0,0.0001863,2]
[367799054,1750932657992,-460.0,0.0001863,2]
[367799056,1750932658002,-543.28,0.0001863,2]
[367799058,1750932658011,-460.0,0.0001863,2]
[367799060,1750932658021,-460.0,0.0001863,2]
[367799062,1750932658030,-460.0,0.0001863,2]
[367799064,1750932658039,-206.1573673,0.0001863,2]
[367799066,1750932658048,-460.0,0.0001863,2]
[367799068,1750932658057,-460.0,0.0001863,2]
[367799070,1750932658067,-154.893648,0.0001863,2]
[367799072,1750932658076,-288.44,0.0001863,2]
[367799074,1750932658086,-460.0,0.0001863,2]
[367799076,1750932658095,-460.0,0.0001863,2]
[367799078,1750932658104,-460.0,0.0001863,2]
[367799080,1750932658113,-460.0,0.0001863,2]
[367799082,1750932658122,-460.0,0.0001863,2]
[367799084,1750932658132,-508.24,0.0001863,2]
[367799086,1750932658141,-462.49,0.0001863,2]
[367799088,1750932658150,-460.0,0.0001863,2]
[367799090,1750932658160,-460.0,0.0001863,2]
[367799092,1750932658170,-194.646327,0.0001863,2]
[367799094,1750932658181,-194.646327,0.0001863,2]
[367799096,1750932658190,-151.0,0.0001863,2]
[367799098,1750932658199,-582.141452,0.0001863,2]
[367799100,1750932658208,-460.0,0.0001863,2]
[367799102,1750932658217,-951.51,0.0001863,2]
[367799104,1750932658227,-460.0,0.0001863,2]
[367799106,1750932658236,-460.0,0.0001863,2]
[367799108,1750932658245,-537.51,0.0001863,2]
[367799110,1750932658255,-460.0,0.0001863,2]
[367799112,1750932658264,-999.24,0.0001863,2]
[367799114,1750932658273,-460.0,0.0001863,2]
[367799116,1750932658283,-533.08,0.0001863,2]
[367799118,1750932658292,-1671.12,0.0001863,2]
[367799120,1750932658301,-460.0,0.0001863,2]
[367799122,1750932658311,-474.23,0.0001863,2]
[367799124,1750932658320,-460.0,0.0001863,2]
[367799126,1750932658329,-1009.0,0.0001863,2]
[367799128,1750932658339,-497.28,0.0001863,2]
[367799130,1750932658348,-460.0,0.0001863,2]
[367799132,1750932658358,-481.52350909,0.0001863,2]
[367799134,1750932658367,-460.0,0.0001863,2]
[367799136,1750932658378,-582.79,0.0001863,2]
[367799138,1750932658387,-460.0,0.0001863,2]
[367799140,1750932658396,-460.0,0.0001863,2]
[367799142,1750932658406,-460.0,0.0001863,2]
[367799144,1750932658415,-460.0,0.0001863,2]
[367799146,1750932658424,-460.0,0.0001863,2]
[367799148,1750932658433,-879.61,0.0001863,2]
[367799150,1750932658442,-460.0,0.0001863,2]
[367799152,1750932658451,-463.23,0.0001863,2]
[367799154,1750932658460,-460.49,0.0001863,2]
[367799156,1750932658470,-1903.18,0.0001863,2]
[367799158,1750932658479,-460.0,0.0001863,2]
[367799160,1750932658489,-460.0,0.0001863,2]
[367799162,1750932658498,-561.06,0.0001863,2]
[367799164,1750932658507,-2113.35,0.0001863,2]
[367799165,1750932658517,-1360.61,0.0001863,2]
[367799168,1750932658527,-480.99,0.0001863,2]
[367799170,1750932658536,-460.0,0.0001863,2]
[367799171,1750932658546,-1596.58,0.0001863,2]
[367799173,1750932658555,-2942.89,0.0001863,2]
[367799175,1750932658565,-700.89,0.0001863,2]
[367799177,1750932658575,-447.8459424,0.0001863,2]
[367799179,1750932658585,-460.0,0.0001863,2]
[367799181,1750932658594,-460.0,0.0001863,2]
[367799183,1750932658604,-741.82,0.0001863,2]
[367799185,1750932658615,-1597.51,0.0001863,2]
[367799187,1750932658625,-1739.85,0.0001863,2]
[367799189,1750932658634,-3620.05,0.0001863,2]
[367799191,1750932658644,-3462.89,0.0001863,2]
[367799193,1750932658653,-460.0,0.0001863,2]
[367799195,1750932658662,-460.0,0.0001863,2]
[367799197,1750932658672,-460.0,0.0001863,2]
[367799200,1750932658683,-460.0,0.0001863,2]
[367799201,1750932658693,-460.0,0.0001863,2]
[367799203,1750932658701,-1420.6,0.0001863,2]
[367799205,1750932658710,-481.33,0.0001863,2]
[367799207,1750932658721,-460.0,0.0001863,2]
[367799209,1750932658730,-1300.58,0.0001863,2]
[367799211,1750932658740,-460.0,0.0001863,2]
[367799213,1750932658749,-460.0,0.0001863,2]
[367799215,1750932658758,-1064.55,0.0001863,2]
[367799217,1750932658767,-460.0,0.0001863,2]
[367799219,1750932658776,-1095.23,0.0001863,2]
[367799221,1750932658786,-1049.62,0.0001863,2]
[367799223,1750932658796,-460.0,0.0001863,2]
[367799225,1750932658805,-538.77967261,0.0001863,2]
[367799227,1750932658815,-460.0,0.0001863,2]
[367799229,1750932658824,-460.0,0.0001863,2]
[367799230,1750932658833,-460.0,0.0001863,2]
[367799231,1750932658842,-1288.06,0.0001863,2]
[367799232,1750932658851,-1521.77,0.0001863,2]
[367799233,1750932658861,-460.0,0.0001863,2]
[367799234,1750932658870,-460.0,0.0001863,2]
[367799235,1750932658879,-460.0,0.0001863,2]
[367799236,1750932658888,-460.0,0.0001863,2]
[367799239,1750932658898,-1332.76,0.0001863,2]
[367799241,1750932658907,-626.87,0.0001863,2]
[367799243,1750932658916,-2000.0,0.00018785,2]
[367799244,1750932658926,-168.0,0.00018824,2]
[367799246,1750932658935,-2564.65858329,0.00018831,2]
[367799248,1750932658944,-168.0,0.00018836,2]
[367799250,1750932658953,-1000.0,0.00018842,2]
[367799252,1750932658962,-511.32697788,0.00018876,2]
[367799254,1750932658971,-151.0,0.00018904,2]
[367799256,1750932658981,-460.0,0.00018904,2]
[367799258,1750932658990,-460.0,0.00018904,2]
[367799260,1750932658999,-460.0,0.00018904,2]
[367799262,1750932659008,-358.36176164,0.00018904,2]
[367799264,1750932659018,-460.0,0.00018904,2]
[367799266,1750932659027,-460.0,0.00018904,2]
[367799268,1750932659037,-543.28,0.00018904,2]
[367799271,1750932659046,-460.0,0.00018904,2]
[367799273,1750932659055,-460.0,0.00018904,2]
[367799275,1750932659065,-460.0,0.00018904,2]
[367799277,1750932659074,-460.0,0.00018904,2]
[367799279,1750932659083,-460.0,0.00018904,2]
[367799281,1750932659100,-151.0,0.00018904,2]
[367799284,1750932659111,-151.0,0.00018904,2]
[367799286,1750932659121,-481.99383847,0.00018904,2]
[367799288,1750932659130,-460.0,0.00018904,2]
[367799290,1750932659139,-460.0,0.00018904,2]
[367799292,1750932659149,-153.677598,0.00018904,2]
[367799294,1750932659158,-460.0,0.00018904,2]
[367799296,1750932659167,-151.0,0.00018904,2]
[367799298,1750932659176,-460.0,0.00018904,2]
[367799300,1750932659186,-460.0,0.00018904,2]
[367799302,1750932659195,-151.0,0.00018904,2]
[367799304,1750932659204,-252.11651,0.00018904,2]
[367799306,1750932659214,-460.0,0.00018904,2]
[367799308,1750932659224,-151.0,0.00018904,2]
[367799310,1750932659233,-460.0,0.00018904,2]
[367799312,1750932659243,-951.51,0.00018904,2]
[367799314,1750932659252,-387.6,0.00018904,2]
[367799316,1750932659261,-460.0,0.00018904,2]
[367799318,1750932659271,-537.51,0.00018904,2]
[367799320,1750932659280,-374.75044729,0.00018904,2]
[367799322,1750932659292,-999.24,0.00018904,2]
[367799324,1750932659302,-460.0,0.00018904,2]
[367799326,1750932659311,-533.08,0.00018904,2]
[367799328,1750932659321,-1671.12,0.00018904,2]
[367799330,1750932659331,-460.0,0.00018904,2]
[367799333,1750932659340,-474.23,0.00018904,2]
[367799335,1750932659350,-460.0,0.00018904,2]
[367799337,1750932659359,-1009.0,0.00018904,2]
[367799339,1750932659369,-497.28,0.00018904,2]
[367799341,1750932659379,-460.0,0.00018904,2]
[367799357,1750932659517,-460.0,0.00018904,2]
[367799359,1750932659527,-582.79,0.00018904,2]
[367799361,1750932659537,-460.0,0.00018904,2]
[367799363,1750932659546,-460.0,0.00018904,2]
[367799365,1750932659556,-460.0,0.00018904,2]
[367799367,1750932659565,-599.63577361,0.00018904,2]
[367799369,1750932659574,-460.0,0.00018904,2]
[367799371,1750932659583,-879.61,0.00018904,2]
[367799373,1750932659593,-460.0,0.00018904,2]
[367799375,1750932659604,-463.23,0.00018904,2]
[367799377,1750932659613,-460.49,0.00018904,2]
[367799379,1750932659623,-1903.18,0.00018904,2]
[367799381,1750932659632,-460.0,0.00018904,2]
[367799383,1750932659641,-460.0,0.00018904,2]
[367799385,1750932659651,-561.06,0.00018904,2]
[367799387,1750932659660,-2113.35,0.00018904,2]
[367799389,1750932659670,-1360.61,0.00018904,2]
[367799391,1750932659680,-480.99,0.00018904,2]
[367799393,1750932659689,-460.0,0.00018904,2]
[367799395,1750932659699,-1596.58,0.00018904,2]
[367799397,1750932659709,-2942.89,0.00018904,2]
[367799399,1750932659719,-700.89,0.00018904,2]
[367799401,1750932659728,-460.0,0.00018904,2]
[367799402,1750932659738,-460.0,0.00018904,2]
[367799404,1750932659748,-741.82,0.00018904,2]
[367799406,1750932659757,-1597.51,0.00018904,2]
[367799408,1750932659767,-1739.85,0.00018904,2]
[367799410,1750932659777,-3620.05,0.00018904,2]
[367799412,1750932659788,-3462.89,0.00018904,2]
[367799414,1750932659798,-460.0,0.00018904,2]
[367799416,1750932659807,-460.0,0.00018904,2]
[367799418,1750932659817,-460.0,0.00018904,2]
[367799420,1750932659827,-460.0,0.00018904,2]
[367799422,1750932659836,-460.0,0.00018904,2]
[367799424,1750932659847,-1420.6,0.00018904,2]
[367799426,1750932659857,-151.0,0.00018904,2]
[367799428,1750932659866,-481.33,0.00018904,2]
[367799430,1750932659875,-460.0,0.00018904,2]
[367799432,1750932659884,-1300.58,0.00018904,2]
[367799434,1750932659894,-460.0,0.00018904,2]
[367799436,1750932659904,-460.0,0.00018904,2]
[367799439,1750932659913,-1064.55,0.00018904,2]
[367799440,1750932659927,-460.0,0.00018904,2]
[367799442,1750932659936,-1095.23,0.00018904,2]
[367799444,1750932659946,-1049.62,0.00018904,2]
[367799446,1750932659955,-460.0,0.00018904,2]
[367799449,1750932659965,-153.44296881,0.00018904,2]
[367799451,1750932659975,-460.0,0.00018904,2]
[367799453,1750932659984,-460.0,0.00018904,2]
[367799455,1750932659993,-1288.06,0.00018904,2]
[367799457,1750932660002,-1521.77,0.00018904,2]
[367799458,1750932660012,-460.0,0.00018904,2]
[367799460,1750932660022,-460.0,0.00018904,2]
[367799462,1750932660031,-460.0,0.00018904,2]
[367799465,1750932660041,-460.0,0.00018904,2]
[367799467,1750932660051,-1332.76,0.00018904,2]
[367799469,1750932660061,-626.87,0.00018904,2]
[367799471,1750932660071,-297.91618109,0.00018986,2]
[367799473,1750932660081,-151.0,0.00019,2]
[367799475,1750932660091,-168.0,0.00019002,2]
[367799477,1750932660101,-916.0,0.00019054,2]
[367799479,1750932660110,-916.0,0.00019079,2]
[367799481,1750932660120,-2000.0,0.00019105,2]
[367799483,1750932660129,-2564.65858329,0.00019107,2]
[367799485,1750932660142,-460.0,0.00019178,2]
[367799487,1750932660152,-525.75,0.00019178,2]
[367799489,1750932660162,-588.25,0.00019178,2]
[367799491,1750932660174,-460.0,0.00019178,2]
[367799493,1750932660184,-460.0,0.00019178,2]
[367799495,1750932660194,-294.877351,0.00019178,2]
[367799498,1750932660205,-294.877351,0.00019178,2]
[367799500,1750932660215,-543.28,0.00019178,2]
[367799501,1750932660224,-460.0,0.00019178,2]
[367799504,1750932660233,-151.0,0.00019178,2]
[367799506,1750932660243,-460.0,0.00019178,2]
[367799508,1750932660253,-151.0,0.00019178,2]
[367799509,1750932660262,-151.0,0.00019178,2]
[367799511,1750932660271,-460.0,0.00019178,2]
[367799513,1750932660281,-460.0,0.00019178,2]
[367799515,1750932660290,-460.0,0.00019178,2]
[367799517,1750932660300,-381.00286136,0.00019178,2]
[367799519,1750932660309,-336.418142,0.00019178,2]
[367799521,1750932660319,-336.418142,0.00019178,2]
[367799523,1750932660328,-599.19020435,0.00019178,2]
[367799525,1750932660338,-460.0,0.00019178,2]
[367799527,1750932660348,-460.0,0.00019178,2]
[367799529,1750932660357,-284.35057445,0.00019178,2]
[367799531,1750932660366,-151.0,0.00019178,2]
[367799533,1750932660376,-151.0,0.00019178,2]
[367799535,1750932660385,-151.0,0.00019178,2]
[367799537,1750932660395,-951.51,0.00019178,2]
[367799539,1750932660404,-460.0,0.00019178,2]
[367799541,1750932660414,-537.51,0.00019178,2]
[367799543,1750932660425,-999.24,0.00019178,2]
[367799545,1750932660435,-460.0,0.00019178,2]
[367799547,1750932660445,-533.08,0.00019178,2]
[367799549,1750932660455,-1671.12,0.00019178,2]
[367799551,1750932660465,-460.0,0.00019178,2]
[367799553,1750932660474,-474.23,0.00019178,2]
[367799555,1750932660483,-514.69611994,0.00019178,2]
[367799557,1750932660493,-1009.0,0.00019178,2]
[367799559,1750932660503,-497.28,0.00019178,2]
[367799561,1750932660512,-151.0,0.00019178,2]
[367799563,1750932660522,-460.0,0.00019178,2]
[367799565,1750932660532,-460.0,0.00019178,2]
[367799567,1750932660542,-582.79,0.00019178,2]
[367799569,1750932660551,-460.0,0.00019178,2]
[367799571,1750932660560,-460.0,0.00019178,2]
[367799573,1750932660571,-460.0,0.00019178,2]
[367799575,1750932660580,-460.0,0.00019178,2]
[367799577,1750932660590,-879.61,0.00019178,2]
[367799579,1750932660600,-460.0,0.00019178,2]
[367799581,1750932660611,-463.23,0.00019178,2]
[367799583,1750932660624,-460.49,0.00019178,2]
[367799585,1750932660634,-1903.18,0.00019178,2]
[367799587,1750932660643,-460.0,0.00019178,2]
[367799589,1750932660653,-460.0,0.00019178,2]
[367799591,1750932660662,-561.06,0.00019178,2]
[367799593,1750932660673,-2113.35,0.00019178,2]
[367799595,1750932660682,-1360.61,0.00019178,2]
[367799597,1750932660691,-480.99,0.00019178,2]
[367799599,1750932660701,-1596.58,0.00019178,2]
[367799601,1750932660712,-2942.89,0.00019178,2]
[367799603,1750932660721,-700.89,0.00019178,2]
[367799605,1750932660731,-460.0,0.00019178,2]
[367799607,1750932660741,-460.0,0.00019178,2]
[367799609,1750932660750,-741.82,0.00019178,2]
[367799611,1750932660761,-1597.51,0.00019178,2]
[367799613,1750932660772,-1739.85,0.00019178,2]
[367799615,1750932660782,-3620.05,0.00019178,2]
[367799617,1750932660791,-3462.89,0.00019178,2]
[367799619,1750932660802,-460.0,0.00019178,2]
[367799621,1750932660811,-460.0,0.00019178,2]
[367799623,1750932660820,-460.0,0.00019178,2]
[367799625,1750932660830,-460.0,0.00019178,2]
[367799626,1750932660839,-460.0,0.00019178,2]
[367799628,1750932660848,-1420.6,0.00019178,2]
[367799630,1750932660857,-481.33,0.00019178,2]
[367799632,1750932660866,-460.0,0.00019178,2]
[367799634,1750932660875,-1300.58,0.00019178,2]
[367799645,1750932660969,-460.0,0.00019178,2]
[367799647,1750932660979,-460.0,0.00019178,2]
[367799649,1750932660988,-1064.55,0.00019178,2]
[367799651,1750932660998,-460.0,0.00019178,2]
[367799653,1750932661008,-1095.23,0.00019178,2]
[367799655,1750932661019,-1049.62,0.00019178,2]
[367799657,1750932661029,-460.0,0.00019178,2]
[367799659,1750932661038,-460.0,0.00019178,2]
[367799661,1750932661048,-460.0,0.00019178,2]
[367799663,1750932661057,-1288.06,0.00019178,2]
[367799665,1750932661066,-1521.77,0.00019178,2]
[367799667,1750932661076,-460.0,0.00019178,2]
[367799669,1750932661086,-460.0,0.00019178,2]
[367799671,1750932661095,-460.0,0.00019178,2]
[367799673,1750932661104,-460.0,0.00019178,2]
[367799675,1750932661114,-1332.76,0.00019178,2]
[367799677,1750932661124,-626.87,0.00019178,2]
[367799679,1750932661134,-29022.9130628,0.00019178,2]
[367799681,1750932661143,-302.07678004,0.00019318,2]
[367799683,1750932661153,-432.95481487,0.00019318,2]